Workbook

Sheet 分部分项工程
A1: 分部分项工作和单价措施项目清单与计价表
A2: 项目名称：广州市公安局花都区分局交通设施维护、监理及交通信号优化、合理性评估服务采购项目 | D2: 价格单位：元（人民币）
A3: 序号 | B3: 项目名称 | C3: 特征描述 | D3: 单位 | E3: 单价最高限价 | F3: 备注
A4: 一 | B4: 交通护栏
A5: 1 | B5: 2008-1式机动车道护栏（2780*970mm） | C5: 1、不含立柱； 2、横梁：热轧槽钢6.3； 3、栅栏：热轧圆钢Ф16； 4、栅栏连接板：热轧扁钢50*50*5mm； 5、栅栏筋板：热轧扁钢50*80*10mm； 6、与立柱连接螺栓/螺母：M10*25mm； 7、含制作、镀锌、喷漆、安装。 | D5: m | E5: 238.75
A6: =+A5+1 -> 2 | B6: 2008-1式机动车道护栏立柱（950*60*80mm） | C6: 1、矩管60*80*3mm; 2、连接板（上）：热轧扁钢50*50*5mm； 3、连接板（下）：热轧扁钢50*40*8mm； 4、立柱连接螺栓/螺母：M10*150mm； 6、盖帽：热轧钢板60*80*4mm； 7、荧光黄绿反光膜：180*25mm； 8、含制作、镀锌、喷漆、安装。 | D6: 支 | E6: 94.91
A7: 3 | B7: 2008-1式机动车道护栏渐变段（2780*970*930~480mm） | C7: 1、不含立柱； 2、横梁：热轧槽钢6.3； 3、栅栏：热轧圆钢Ф16； 4、栅栏连接板：热轧扁钢50*50*5mm； 5、栅栏筋板：热轧扁钢50*80*10mm； 6、与立柱连接螺栓/螺母：M10*25mm； 7、渐变段栅栏高度依次为：930mm、880mm、830mm、780mm、730mm、680mm、630mm、580mm、530mm、480mm。 8、含制作、镀锌、喷漆、安装。 | D7: 排 | E7: 572.38
A8: 4 | B8: 2008-1机动车道护栏全底座（400*320*180mm） | C8: 1、全铸铁； 2、含安装 | D8: 个 | E8: 613.71
A9: 5 | B9: 2008-1机动车道护栏半底座（400*180*180mm） | C9: 1、全铸铁； 2、含安装 | D9: 个 | E9: 494.26
A10: 6 | B10: 2008式人行道护栏（1896*920mm） | C10: 1、不含立柱； 2、横梁：热轧槽钢6.3； 3、栅栏：热轧圆钢Ф16； 4、栅栏筋板：热轧扁钢69*50*5mm； 5、栅栏连接板：热轧扁钢55*50*10mm； 6、M5*25螺栓、螺母； 7、含制作、镀锌、喷漆、安装。 | D10: m | E10: 139.51
A11: 7 | B11: 2008式人行道护栏立柱（Ф76*4*1050mm） | C11: 1、热轧钢管：Ф76*4*1050mm; 2、连接板（上）：热轧扁钢55*50*5mm； 3、连接板（下）60.7*40*8mm； 4、底座法兰板：200*200*12mm； 5、盖帽;Ф76*3mm； 6、膨胀螺栓：M16*150mm； 7、含制作、镀锌、喷漆、安装。 | D11: m | E11: 156.32
A12: 8 | B12: 2008-1式机非分隔护栏（2780*520mm） | C12: 1、不含立柱； 2、横梁：热轧槽钢6.3； 3、栅栏：热轧圆钢Ф16； 4、栅栏连接板：热轧扁钢50*50*10mm； 5、栅栏筋板：热轧扁钢50*80*5mm； 6、与立柱连接螺栓/螺母：M10*25mm； 7、含制作、镀锌、喷漆、安装。 | D12: m | E12: 195.43
A13: 9 | B13: 2008-1式机非分隔护栏立柱（60*80*3*550mm） | C13: 1、60mm*80mm*3mm方钢；高度550mm； 2、含制作、焊接、镀锌、喷漆、安装。 | D13: 支 | E13: 107.37
A14: 10 | B14: 2008-1式机非分隔护栏小型全底座（铸铁）（240*240*150mm） | C14: 1、全铸铁；2、含安装 | D14: 个 | E14: 365.31
A15: 11 | B15: 2008-1式机非分隔护栏小型半底座（铸铁）（240*130*150mm） | C15: 1、全铸铁；2、含安装 | D15: 个 | E15: 295.3
A16: 12 | B16: 2008-1机动车道护栏全底座立面反光喷涂（400*320*180mm） | C16: 1、丙烯酸树脂溶剂型涂料； 2、无铅颜料； 3、外表面喷涂； 4、面洒反光玻璃微珠，0.4-0.6kg/㎡。 | D16: 个 | E16: 28.65
A17: 13 | B17: 2008-1机动车道护栏半底座立面反光喷涂（400*160*180mm） | C17: 1、丙烯酸树脂溶剂型涂料； 2、无铅颜料； 3、外表面喷涂； 4、面洒反光玻璃微珠，0.4-0.6kg/㎡。 | D17: 个 | E17: 22.28
A18: 14 | B18: 护栏底座立面反光喷涂 | C18: 1、丙烯酸树脂溶剂型涂料； 2、无铅颜料； 3、外表面喷涂； 4、面洒反光玻璃微珠，0.4-0.6kg/㎡。 | D18: ㎡ | E18: 110.52
A19: 15 | B19: 防撞水泥石码（1500*750mm） | C19: 1、C30混凝土；1500*750mm； 2、表面涂刷黄黑相间或蓝白相间树脂油漆； 3、上宽150mm，下宽500mm； 4、双侧预留孔Ф83*2个； 5、吊孔Ф50mm； 6、含安装。 | D19: 个 | E19: 647.19
A20: 16 | B20: 单面波形梁钢护栏（310*85*3mm） | C20: 1、二波形梁； 2、波形梁：506*85*3mm钢板; 2、立柱：Ф140*4.5*2350mm钢管（埋入式）；Ф140*4.5*750mm(法兰板固定式）； 3、防阻块：a=102mm,h=400mm型钢板； 4、柱帽：Ф140*4mm; 5、连接螺母：M16；螺栓：M16*180mm； 6、圆头螺栓（1）：M16*35mm；圆头螺栓（2）：M16*45mm； 7、含热镀锌、安装。 | D20: m | E20: 395.08
A21: 17 | B21: 双面波形梁钢护栏（310*85*3mm） | C21: 1、二波形梁； 2、波形梁：310*85*4mm钢板; 2、立柱：Ф140*4.5*2150mm钢管（埋入式）；Ф140*4.5*750mm(法兰板固定式）； 3、横隔梁：480*200*50*4.5mm型钢板； 4、柱帽：Ф140*4mm; 5、连接螺母：M16；螺栓：M16*180mm； 6、圆头螺栓（1）：M16*32.5mm；圆头螺栓（2）：M16*36mm； 7、含热镀锌、安装。 | D21: m | E21: 498.34
A22: 18 | B22: 单面波形梁钢护栏端头（745*506*4mm） | C22: 1、适用二波形梁； 2、745*506*4mm； 3、R=160mm; 4、含热镀锌、安装。 | D22: 个 | E22: 200.24
A23: 19 | B23: 双面波形梁钢护栏端头（780*406*4mm） | C23: 1、适用二波形梁； 2、780*406*4mm； 3、R=250mm; 4、含热镀锌、安装。 | D23: 个 | E23: 206.52
A24: 20 | B24: 中心防撞墙护栏（3000*710mm） | C24: 1、包含立柱； 2、横梁：40*40*3*2880mm热轧方管； 3、栅栏：14*1481233热轧方钢； 4、栅栏连接板：100*50*5mm热轧扁钢； 5、立柱：60*60*3*590热轧方管； 6、固定螺栓：M12*110mm； 7、固定底板：180*100*10mm热轧扁钢； 8、含制作、热镀锌、喷漆、安装。 | D24: m | E24: 162.88
A25: 21 | B25: 全塑机动车道护栏（3100*1050mm） | C25: 1、平口型；含注浆底座、安装。 | D25: m | E25: 382.61
A26: 22 | B26: 安装各式无基础护栏 | C26: 1、安装护栏的人工及器械费用； 2、包含连接螺栓。 | D26: m | E26: 39.94
A27: 23 | B27: 拆除各式无基础护栏 | C27: 拆除护栏的人工及器械费用。 | D27: m | E27: 16.85
A28: 24 | B28: 安装各式有基础护栏 | C28: 1、安装护栏的人工及器械费用； 2、包含连接螺栓、C25水泥混凝土基础。 | D28: m | E28: 48.94
A29: 25 | B29: 拆除各式有基础护栏 | C29: 1、拆除护栏的人工及器械费用。 | D29: m | E29: 21.87
A30: 26 | B30: 安装各式无基础护栏立柱 | C30: 1、仅适用单独安装立柱；不适用连同护栏整体安装； 2、含连接螺栓。 | D30: 支 | E30: 21.23
A31: 27 | B31: 拆除各式无基础护栏立柱 | C31: 仅适用单独拆除立柱；不适用连同护栏整体拆除； | D31: 支 | E31: 21.33
A32: 28 | B32: 安装各式有基础护栏立柱 | C32: 1、仅适用单独安装立柱；不适用连同护栏整体安装； 2、含连接螺栓、C25水泥混凝土基础。 | D32: 支 | E32: 146.62
A33: 29 | B33: 拆除各式有基础护栏立柱 | C33: 1、仅适用单独拆除立柱；不适用连同护栏整体拆除； 2、含拆除混凝土基础。 | D33: 支 | E33: 46.2
A34: 30 | B34: 安装各式护栏底座 | C34: 1、安装护栏底座的人工及器械费用； 2、包含固定螺栓。 | D34: 个 | E34: 210.95
A35: 31 | B35: 拆除各式护栏底座 | C35: 1、拆除护栏底座的人工及器械费用； 2、包含拆除固定螺栓。 | D35: 个 | E35: 53.64
A36: 二 | B36: 交通标志
A37: =+A35+1 -> 32 | B37: 自发光标志（白冷光LED发光二极管、导光板；接入220v，输出24v。） | C37: 1、半透或全透发光，电网接入； 2、铝合金板材，夜间有效动态视认距离≥210米 ，静态视认距离≥250米； 3、使用寿命大于5年。 4、含运输、安装。 | D37: ㎡ | E37: 2586.56
A38: =+A37+1 -> 33 | B38: Ⅲ类反光膜Ⅰ | C38: 1、密封胶囊式玻璃珠结构；高强级反光膜； 2、含粘贴、安装。 | D38: ㎡ | E38: 187.16
A39: 34 | B39: Ⅲ类反光膜Ⅱ | C39: 1、密封胶囊式玻璃珠结构；高强级反光膜； 2、含粘贴、安装。 | D39: ㎡ | E39: 143.56
A40: 35 | B40: Ⅳ类反光膜Ⅰ | C40: 1、微棱镜型结构，超强级反光膜； 2、含粘贴、安装。 | D40: ㎡ | E40: 230.76
A41: 36 | B41: Ⅳ类反光膜Ⅱ | C41: 1、微棱镜型结构，超强级反光膜； 2、含粘贴、安装。 | D41: ㎡ | E41: 181.71
A42: 37 | B42: Ⅴ类反光膜Ⅰ | C42: 1、微棱镜型结构，大角度反光膜； 2、含粘贴、安装。 | D42: ㎡ | E42: 405.16
A43: 38 | B43: Ⅴ类反光膜Ⅱ | C43: 1、微棱镜型结构，大角度反光膜； 2、含粘贴、安装。 | D43: ㎡ | E43: 285.26
A44: 39 | B44: 荧光黄绿（橙）反光膜Ⅰ | C44: 1、Ⅴ类荧光黄绿（橙）；全棱镜结构； 2、含粘贴、安装。 | D44: ㎡ | E44: 435.68
A45: 40 | B45: 荧光黄绿（橙）反光膜Ⅱ | C45: 1、Ⅴ类荧光黄绿（橙）；全棱镜结构； 2、含粘贴、安装。 | D45: ㎡ | E45: 323.41
A46: 41 | B46: 数码打印Ⅳ类反光膜 | C46: 1、微棱镜型结构，超强级反光膜；数码打印； 2、含粘贴、安装。 | D46: ㎡ | E46: 312.51
A47: 42 | B47: 数码打印Ⅴ类反光膜 | C47: 1、微棱镜型结构，超强级反光膜；数码打印； 2、含粘贴、安装。 | D47: ㎡ | E47: 454.21
A48: 43 | B48: 铝板（3mm） | C48: 1、LF2-M铝合金; 2，含切割、安装。 | D48: ㎡ | E48: 431.51
A49: 44 | B49: 热镀锌板 | C49: 1、热镀锌板1mm; 2，含切割、安装。 | D49: ㎡ | E49: 143.52
A50: 45 | B50: 滑动铝槽60mm（60*12*1.5mm） | C50: 1、LF2-M铝合金; 2，含切割、安装。 | D50: m | E50: 52.25
A51: 46 | B51: 滑动铝槽80mm（80*18*3mm） | C51: 1、LF2-M铝合金; 2，含切割、安装。 | D51: m | E51: 65.99
A52: 47 | B52: 滑动铝槽100mm（100*25*4mm） | C52: 1、LF2-M铝合金; 2、切割、安装。 | D52: m | E52: 77.44
A53: 48 | B53: 单立杆Ф60mm（Ф60*3.5mm） | C53: 1、Q235A镀锌钢管； 2、含切割、安装。 | D53: m | E53: 77.85
A54: 49 | B54: 单立杆Ф76mm（Ф76*3.75mm） | C54: 1、Q235A镀锌钢管； 2、含切割、安装。 | D54: m | E54: 152.03
A55: 50 | B55: 单立杆Ф89mm（Ф89*4mm） | C55: 1、Q235A镀锌钢管； 2、含切割、安装。 | D55: m | E55: 179.7
A56: 51 | B56: 拆除各式单立杆 | C56: 1、拆除各式标志单杆； 2、包含运输车辆台班。 | D56: 支 | E56: 84.22
A57: 52 | B57: 立杆底座法兰板Ф60（250*250*10mm） | C57: 1、适用于Ф60mm单立杆； 2、Q235A钢板； 3、加劲板：80*150*8mm； 4、含制作、镀锌、安装。 | D57: 个 | E57: 64.16
A58: 53 | B58: 立杆底座法兰板Ф76（400*400*10mm） | C58: 1、适用于Ф76mm单立杆； 2、Q235A钢板； 3、加劲板：82*200*8mm； 4、含制作、镀锌、安装。 | D58: 个 | E58: 109.07
A59: 54 | B59: 立杆底座法兰板Ф89（400*400*6mm） | C59: 1、适用于Ф89mm单立杆； 2、Q235A钢板； 3、加劲板：105*200*8mm； 4、含制作、镀锌、安装。 | D59: 个 | E59: 130.71
A60: 55 | B60: 6m悬臂式标志杆（L杆）立柱（臂长6m） | C60: 1、立柱：a120-a140*10*7850mm八角锥形钢管；雨帽：Ф389*3mm; 2、连接悬臂法兰板：500*500*20mm；连接法兰板加劲肋：500*265*16mm; 3、底座法兰板：Ф1000*20mm;加劲肋：220*300*16mm； 4、含连接螺栓、螺母； 5、含制作、镀锌、喷漆、安装。 | D60: 座 | E60: 8854.24
A61: 56 | B61: 6m悬臂式标志杆（L杆）横臂（臂长6m） | C61: 1、横臂：a80-a120*10*6000mm八角锥形钢管；雨帽：Ф293*3mm; 2、连接立柱法兰板500*500*20mm；连接法兰板加劲肋：90*250*14mm； 3、含连接螺栓、螺母； 4、含制作、镀锌、喷漆、安装。 | D61: 根 | E61: 4410.26
A62: 57 | B62: 8m悬臂式标志杆（L杆）立柱（臂长8m） | C62: 1、立柱：a130-a150*12*7850mm八角锥形钢管；雨帽：Ф413*3mm; 2、连接悬臂法兰板：600*600*20mm；连接法兰板加劲肋：600*280*16mm; 3、底座法兰板：Ф1000*20mm;加劲肋：220*300*16mm； 4、含连接螺栓、螺母； 5、含制作、镀锌、喷漆、安装。 | D62: 座 | E62: 12305.57
A63: 58 | B63: 8m悬臂式标志杆（L杆）横臂（臂长8m） | C63: 1、横臂：a90-a130*10*8000mm八角锥形钢管；雨帽：Ф317*3mm; 2、连接立柱法兰板600*600*20mm；连接法兰板加劲肋：110*300*16mm； 3、含连接螺栓、螺母； 4、含制作、镀锌、喷漆、安装。 | D63: 根 | E63: 6893.9
A64: 59 | B64: 10m悬臂式标志杆（L杆）立柱（臂长10m） | C64: 1、立柱：a140-a160*14*7850mm八角锥形钢管；雨帽：Ф437*3mm; 2、连接悬臂法兰板：600*600*20mm；连接法兰板加劲肋：600*290*16mm; 3、底座法兰板：Ф1000*25mm;加劲肋：220*300*16mm； 4、含连接螺栓、螺母； 5、含制作、镀锌、喷漆、安装。 | D64: 座 | E64: 13312.21
A65: 60 | B65: 10m悬臂式标志杆（L杆）横臂（臂长10m） | C65: 1、横臂：a100-a140*10*10000mm八角锥形钢管；雨帽：Ф341*3mm; 2、连接立柱法兰板600*600*20mm；连接法兰板加劲肋：110*300*16mm； 3、含连接螺栓、螺母； 4、含制作、镀锌、喷漆、安装。 | D65: 根 | E65: 8977.08
A66: 61 | B66: 倒三角门架立柱 | C66: 1、Q235A钢； 2、热轧槽钢40b*6423mm，共4件； 3、加劲腹板：①96*6398*8mm；②96*6153*8mm； 4、底座加劲法兰板：700*600*25mm钢板；法兰加劲肋：①100*270*16mm；②200*270*16mm; 5、连接横梁法兰板：1300*1770*20mm；法兰板加劲肋：300*200*16mm；法兰板两侧加劲肋：1500*380*20mm；法兰顶端加劲板：1300*380*20mm； 6、加劲雨板：520*390*16mm; 7、含连接螺栓、螺母； 8、含制作、镀锌、喷漆、安装。 | D66: 座 | E66: 23439.99
A67: 62 | B67: 倒三角门架横梁 | C67: 1、Q235A钢； 2、上、下弦无缝钢管：Ф140*3mm; 3、上下弦连接斜钢管、连接直钢管：Ф60*3.5mm; 4、上下弦驳接钢管：Ф127*4.5mm； 5、横梁连接法兰板：1404*1160*20mm；法兰梁侧加劲肋：1360*50*10mm；法兰顶端加劲板：1000*50*20mm； 6、含连接螺栓、螺母； 7、含制作、镀锌、喷漆、安装。 | D67: m | E67: 1577.22
A68: 63 | B68: 八角形钢管门架立柱 | C68: 1、Q235A钢； 2、八角钢管立柱：a140*12*7290mm； 3、底座法兰板：1200*600*20mm；加劲肋：①350*300*16mm；②200*300*16mm； 4、连接横梁法兰板：500*500*20mm；加劲肋：①200*500*16mm；②150*500*16mm；③130*500*16mm； 5、雨帽：Ф387*5mm； 6、含连接螺栓、螺母； 7、含制作、镀锌、喷漆、安装。 | D68: 座 | E68: 11118.68
A69: 64 | B69: 八角形钢管门架横梁 | C69: 1、Q235A钢； 2、八角钢管横梁：双悬横梁a120*10mm； 3、横梁连接支撑八角管：a48*5*310mm； 4、连接立柱法兰板：500*500*20mm;加劲肋：250*110*16mm; 5、雨帽：Ф339*5mm； 6、含连接螺栓、螺母； 7、含制作、镀锌、喷漆、安装。 | D69: m | E69: 1480.76
A70: 65 | B70: 标志板连接抱箍Ⅰ（50*5mm） | C70: 1、适用于单立杆标志、悬臂式标志、八角形钢管门架标志； 2、Q235A钢板条； 3、M18高强螺栓、螺母； 4、含制作、安装。 | D70: m | E70: 12.12
A71: 66 | B71: 标志板连接抱箍Ⅱ（60*8mm） | C71: 1、适用于倒三角门架标志； 2、Q235A钢板条； 3、M18高强螺栓、螺母； 4、含制作、安装。 | D71: m | E71: 17.31
A72: 67 | B72: 混凝土基础 | C72: 1、混凝土C25； 2、不含基础笼； 3、含人工、浇注。 | D72: m³ | E72: 857.27
A73: 68 | B73: 挖基坑土方 | C73: 1、土壤类别:综合考虑 2、挖土深度:综合考虑 | D73: m³ | E73: 11.29
A74: 69 | B74: 拆除路面 | C74: 1、材质:拆除混凝土路面 2、厚度:综合考虑 | D74: ㎡ | E74: 23.57
A75: 70 | B75: 拆除人行道 | C75: 1、材质:拆除人行道路面 2、厚度:综合考虑 | D75: ㎡ | E75: 13.55
A76: 71 | B76: 回填方 | C76: 1、填方材料品种:土方 | D76: m³ | E76: 25.75
A77: 72 | B77: 余方弃置 | C77: 1、废弃料品种:土方 2、运距:综合考虑 | D77: m³ | E77: 54.02
A78: 73 | B78: 基础笼 | C78: 1、含地脚螺栓、螺母、箍筋、板筋、法兰板； 2、含人工、安装。 | D78: 吨 | E78: 7269.16
A79: 74 | B79: 安装悬臂式标志杆横臂 | C79: 1、安装各式悬臂式标志杆横臂； 2、含各规格连接螺栓； 3、包含吊车、升车、运输车辆台班； | D79: 根 | E79: 1731.54
A80: 75 | B80: 安装悬臂式标志杆立柱 | C80: 1、安装各式悬臂式标志杆立柱； 2、含各规格连接螺栓； 3、包含吊车、升车、运输车辆台班； | D80: 座 | E80: 2537.79
A81: 76 | B81: 拆除悬臂式标志杆横臂 | C81: 1、拆除各式悬臂式标志杆横臂； 2、包含吊车、升车、运输车辆台班； | D81: 根 | E81: 1268.89
A82: 77 | B82: 拆除悬臂式标志杆立柱 | C82: 1、拆除各式悬臂式标志杆立柱； 2、包含吊车、升车、运输车辆台班； | D82: 座 | E82: 1268.89
A83: 78 | B83: 安装门架横梁 | C83: 1、安装各式门架横梁； 2、含各规格连接螺栓； 3、包含吊车、升车、运输车辆台班； | D83: m | E83: 519.85
A84: 79 | B84: 安装门架立柱 | C84: 1、安装各式门架立柱； 2、含各规格连接螺栓； 3、包含吊车、升车、运输车辆台班； | D84: 座 | E84: 2579.79
A85: 80 | B85: 拆除门架横梁 | C85: 1、拆除各式门架横梁； 2、包含吊车、升车、运输车辆台班； | D85: m | E85: 470.07
A86: 81 | B86: 拆除门架立柱 | C86: 1、拆除各式门架立柱； 2、包含吊车、升车、运输车辆台班； | D86: 座 | E86: 1833.18
A87: 82 | B87: 安装标志 | C87: 1、安装各类标志； 2、包含运输台班及各类紧固配件费用； 3、如涉高空拆除，升、吊车台班另计。 | D87: ㎡ | E87: 60.08
A88: 83 | B88: 拆除标志<2㎡ | C88: 1、不含材料，纯拆除费用； 2、包含运输费用。 | D88: 套 | E88: 74.74
A89: 84 | B89: 拆除标志≥2㎡ | C89: 1、不含材料，纯拆除费用； 2、包含运输费用。 3、如涉高空拆除，升、吊车台班另计。 | D89: ㎡ | E89: 84.22
A90: 85 | B90: 标志除膜 | C90: 1、不含材料，纯清除反光膜费用； | D90: ㎡ | E90: 43.27
A91: 86 | B91: 拆除基础 | C91: 1、拆除各式混凝土基础； 2、包含废料运输及处理费用。 | D91: m³ | E91: 526.01
A92: 87 | B92: 防坠落铁链（Ф≥14mm） | C92: 1、Ф≥14mm镀锌焊接铁链条； 2、含Q235A固定法兰盘式吊（挂）环及固定螺栓； 3、包安装。 | D92: m | E92: 123.38
A93: 三 | B93: 交通标线
A94: =+A92+1 -> 88 | B94: 热熔标线 | C94: 1、热熔反光型标线涂料,软化点为95-125℃； 2、玻璃珠：国标1号，含量≥25%; 3、成型厚度：1.8-2.5mm; 4、不粘胎干燥时间：≤3min； 5、抗压：≥12MPa； 6、施划时釜内控制温度：200±10℃； 7、初始逆反射系数：（白线）≥150mcd；（黄线）≥100mcd。 8、颜色均匀、边缘整齐、线形规则、线条流畅；无明显起泡、皱纹、斑点、开裂、发粘等缺陷。 | D94: ㎡ | E94: 59.12
A95: =+A94+1 -> 89 | B95: 热熔振动标线 | C95: 1、热熔反光型标线涂料,软化点≥100℃； 2、玻璃珠：国标1号，含量≥25%; 3、成型厚度：基线厚度1-2mm;突起部分厚度3-7mm; 4、不粘胎干燥时间：≤3min； 5、抗压：≥12MPa； 6、施划时釜内控制温度：200±10℃； 7、初始逆反射系数：（白线）≥150mcd；（黄线）≥100mcd。 8、颜色均匀、边缘整齐、线形规则、线条流畅；无明显起泡、皱纹、斑点、开裂、发粘等缺陷。 | D95: ㎡ | E95: 107.6
A96: 90 | B96: 冷涂标线 | C96: 1、溶剂型或水性涂料； 2、厚度：0.3-0.8mm； 3、面撒玻璃珠，≥0.5kg/㎡； 4、不粘胎干燥时间：≤15min； 5、初始逆反射系数：（白线）≥150mcd；（黄线）≥100mcd。 6、颜色均匀、边缘整齐、线形规则、线条流畅；无明显起泡、皱纹、斑点、开裂、发粘等缺陷。 | D96: ㎡ | E96: 20.77
A97: 91 | B97: 单组份标线（喷涂） | C97: 1、溶剂型丙烯酸树脂道路标线涂料； 2、施划工艺：喷涂； 3、面撒玻璃珠，≥0.5kg/㎡； 4、不粘胎干燥时间：≤15min； 5、厚度：0.3-0.8mm； 6、初始逆反射系数：（白线）≥300mcd；（黄线）≥150mcd。 7、颜色均匀、边缘整齐、线形规则、线条流畅；无明显起泡、皱纹、斑点、开裂、发粘等缺陷。 | D97: ㎡ | E97: 62.92
A98: 92 | B98: 双组份标线（喷涂） | C98: 1、主成分：常温反应型活性丙烯酸树脂； 2、施划工艺：喷涂； 3、玻璃珠：面撒玻璃珠，含量≥18%; 4、不粘胎干燥时间：≤35min； 5、固化剂：2-4%； 6、稀释剂：1.5-2%； 7、厚度：0.4-1.0mm； 8、逆反射系数：150-350mcd。 9、颜色均匀、边缘整齐、线形规则、线条流畅；无明显起泡、皱纹、斑点、开裂、发粘等缺陷。 | D98: ㎡ | E98: 92.65
A99: 93 | B99: 双组份标线（甩涂） | C99: 1、主成分：常温反应型活性丙烯酸树脂； 2、施划工艺：甩涂； 3、玻璃珠：内混、面撒玻璃珠，含量≥25%; 4、不粘胎干燥时间：≤35min； 5、固化剂：1.5-2%； 6、稀释剂：1.5-2%； 7、厚度：2-4mm； 8、逆反射系数：150-350mcd。 9、颜色均匀、边缘整齐、线形规则、线条流畅；无明显起泡、皱纹、斑点、开裂、发粘等缺陷。 | D99: ㎡ | E99: 152.6
A100: 94 | B100: 双组份标线（刮涂） | C100: 1、主成分：常温反应型活性丙烯酸树脂； 2、施划工艺：刮涂； 3、玻璃珠：内混、面撒玻璃珠，含量≥25%; 4、不粘胎干燥时间：≤35min； 5、固化剂：1.5-2%； 6、稀释剂：1.5-2%； 7、厚度：1.5-2.0mm； 8、逆反射系数：200-400mcd。 9、颜色均匀、边缘整齐、线形规则、线条流畅；无明显起泡、皱纹、斑点、开裂、发粘等缺陷。 | D100: ㎡ | E100: 152.6
A101: 95 | B101: 双组份振动标线 | C101: 1、主成分：常温反应型活性丙烯酸树脂； 2、玻璃珠：内混、面撒玻璃珠，含量≥25%; 3、成型厚度：基线厚度1-2mm;突起部分厚度3-7mm; 4、不粘胎干燥时间：≤35min； 5、固化剂：1.5-2%； 6、稀释剂：1.5-2%； 7、逆反射系数：150-350mcd。 8、颜色均匀、边缘整齐、线形规则、线条流畅；无明显起泡、皱纹、斑点、开裂、发粘等缺陷。 | D101: ㎡ | E101: 239.8
A102: 96 | B102: 热熔雨夜标线 | C102: 1、涂料配方组成：有机物含量≥19%；钛白粉≥10%；有机填料≤42%； 2、涂料配方主要技术指标：密度2-2.6g/m³；软化点不低于105。C；玻璃珠含量≥25%；抗压强度≥15Mpa;厚度≥1.8mm。 3、表面撒播雨夜珠≥200g/㎡、玻璃珠≥200g/㎡； 4、新划逆反射系数：干燥状态≥350mcd/㎡、潮湿状态≥200mcd/㎡ | D102: ㎡ | E102: 144
A103: 97 | B103: 路面防滑彩色涂装 | C103: 1、防滑型涂料，主要成分为甲基丙烯酸甲酯； 2、三层（底漆、防滑骨料、面漆）工艺施工。 3、颜色、骨料颗粒分布均匀，无裂纹、无脱落。 4、抗滑值（BPN）：≥55。 5、凝胶时间：≤12min。 6、质保期：≥24月。 | D103: ㎡ | E103: 214.56
A104: 98 | B104: 预成型标线带Ⅰ | C104: 1、预成型标线带；合成橡胶、树脂，玻璃微珠； 2、含粘贴。 | D104: ㎡ | E104: 574.11
A105: 99 | B105: 预成型标线带Ⅱ | C105: 1、预成型标线带；合成橡胶、树脂，玻璃微珠； 2、含粘贴。 | D105: ㎡ | E105: 279.81
A106: 100 | B106: 热熔直行导向箭头600cm | C106: 按热熔标线要求执行。 | D106: 个 | E106: 154.42
A107: 101 | B107: 热熔直行导向箭头300cm | C107: 按热熔标线要求执行。 | D107: 个 | E107: 38.6
A108: 102 | B108: 热熔左（右）弯导向箭头600cm | C108: 按热熔标线要求执行。 | D108: 个 | E108: 197.24
A109: 103 | B109: 热熔左（右）弯导向箭头300cm | C109: 按热熔标线要求执行。 | D109: 个 | E109: 49.33
A110: 104 | B110: 热熔转弯导向箭头600cm | C110: 按热熔标线要求执行。 | D110: 个 | E110: 197.24
A111: 105 | B111: 热熔转弯导向箭头300cm | C111: 按热熔标线要求执行。 | D111: 个 | E111: 49.33
A112: 106 | B112: 热熔复式导向箭头600cm | C112: 按热熔标线要求执行。 | D112: 个 | E112: 267.37
A113: 107 | B113: 热熔复式导向箭头300cm | C113: 按热熔标线要求执行。 | D113: 个 | E113: 66.84
A114: 108 | B114: 热熔掉头导向箭头600cm | C114: 按热熔标线要求执行。 | D114: 个 | E114: 288.1
A115: 109 | B115: 热熔掉头导向箭头300cm | C115: 按热熔标线要求执行。 | D115: 个 | E115: 71.99
A116: 110 | B116: 热熔路面文字600cm | C116: 按热熔标线要求执行。 | D116: 个 | E116: 384.02
A117: 111 | B117: 热熔路面文字300cm | C117: 按热熔标线要求执行。 | D117: 个 | E117: 192.01
A118: 112 | B118: 热熔路面文字200cm | C118: 按热熔标线要求执行。 | D118: 个 | E118: 128.01
A119: 113 | B119: 热熔路面文字100cm | C119: 按热熔标线要求执行。 | D119: 个 | E119: 64
A120: 114 | B120: 热熔人行横道预告标志（60*120cm） | C120: 按热熔标线要求执行。 | D120: 个 | E120: 46.08
A121: 115 | B121: 热熔人行横道预告标志（150*300cm） | C121: 按热熔标线要求执行。 | D121: 个 | E121: 288.01
A122: 116 | B122: 热熔非机动车道标记（60*120cm） | C122: 按热熔标线要求执行。 | D122: 个 | E122: 46.08
A123: 117 | B123: 热熔减速让行标记（120*300cm） | C123: 按热熔标线要求执行。 | D123: 个 | E123: 230.41
A124: 118 | B124: 热熔停车让行标记（250*100cm） | C124: 按热熔标线要求执行。 | D124: 个 | E124: 160.01
A125: 119 | B125: 双组份喷涂直行导向箭头600cm | C125: 按双组份标线（喷涂）要求执行。 | D125: 个 | E125: 287.77
A126: 120 | B126: 双组份喷涂直行导向箭头300cm | C126: 按双组份标线（喷涂）要求执行。 | D126: 个 | E126: 106.23
A127: 121 | B127: 双组份喷涂左（右）弯导向箭头600cm | C127: 按双组份标线（喷涂）要求执行。 | D127: 个 | E127: 369.96
A128: 122 | B128: 双组份喷涂左（右）弯导向箭头300cm | C128: 按双组份标线（喷涂）要求执行。 | D128: 个 | E128: 123.04
A129: 123 | B129: 双组份喷涂转弯导向箭头600cm | C129: 按双组份标线（喷涂）要求执行。 | D129: 个 | E129: 299.67
A130: 124 | B130: 双组份喷涂转弯导向箭头300cm | C130: 按双组份标线（喷涂）要求执行。 | D130: 个 | E130: 78.07
A131: 125 | B131: 双组份喷涂复式导向箭头600cm | C131: 按双组份标线（喷涂）要求执行。 | D131: 个 | E131: 578.4
A132: 126 | B132: 双组份喷涂复式导向箭头300cm | C132: 按双组份标线（喷涂）要求执行。 | D132: 个 | E132: 147.81
A133: 127 | B133: 双组份喷涂掉头导向箭头600cm | C133: 按双组份标线（喷涂）要求执行。 | D133: 个 | E133: 685.41
A134: 128 | B134: 双组份喷涂掉头导向箭头300cm | C134: 按双组份标线（喷涂）要求执行。 | D134: 个 | E134: 187.5
A135: 129 | B135: 双组份喷涂路面文字600cm | C135: 按双组份标线（喷涂）要求执行。 | D135: 个 | E135: 810.69
A136: 130 | B136: 双组份喷涂路面文字300cm | C136: 按双组份标线（喷涂）要求执行。 | D136: 个 | E136: 406.43
A137: 131 | B137: 双组份喷涂路面文字200cm | C137: 按双组份标线（喷涂）要求执行。 | D137: 个 | E137: 271.67
A138: 132 | B138: 双组份喷涂路面文字100cm | C138: 按双组份标线（喷涂）要求执行。 | D138: 个 | E138: 136.92
A139: 133 | B139: 双组份喷涂人行横道预告标志（60*120cm） | C139: 按双组份标线（喷涂）要求执行。 | D139: 个 | E139: 99.19
A140: 134 | B140: 双组份喷涂人行横道预告标志（150*300cm） | C140: 按双组份标线（喷涂）要求执行。 | D140: 个 | E140: 305.36
A141: 135 | B141: 双组份喷涂非机动车道标记（60*120cm） | C141: 按双组份标线（喷涂）要求执行。 | D141: 个 | E141: 99.19
A142: 136 | B142: 双组份喷涂减速让行标记（120*300cm） | C142: 按双组份标线（喷涂）要求执行。 | D142: 个 | E142: 244.72
A143: 137 | B143: 双组份喷涂停车让行标记（250*100cm） | C143: 按双组份标线（喷涂）要求执行。 | D143: 个 | E143: 342.29
A144: 138 | B144: 双组份刮涂直行导向箭头600cm | C144: 按双组份标线（刮涂）要求执行。 | D144: 个 | E144: 418.05
A145: 139 | B145: 双组份刮涂直行导向箭头300cm | C145: 按双组份标线（刮涂）要求执行。 | D145: 个 | E145: 103.29
A146: 140 | B146: 双组份刮涂左（右）弯导向箭头600cm | C146: 按双组份标线（刮涂）要求执行。 | D146: 个 | E146: 538.96
A147: 141 | B147: 双组份刮涂左（右）弯导向箭头300cm | C147: 按双组份标线（刮涂）要求执行。 | D147: 个 | E147: 137.23
A148: 142 | B148: 双组份刮涂转弯导向箭头600cm | C148: 按双组份标线（刮涂）要求执行。 | D148: 个 | E148: 435.4
A149: 143 | B149: 双组份刮涂转弯导向箭头300cm | C149: 按双组份标线（刮涂）要求执行。 | D149: 个 | E149: 112.09
A150: 144 | B150: 双组份刮涂复式导向箭头600cm | C150: 按双组份标线（刮涂）要求执行。 | D150: 个 | E150: 846.08
A151: 145 | B151: 双组份刮涂复式导向箭头300cm | C151: 按双组份标线（刮涂）要求执行。 | D151: 个 | E151: 214.72
A152: 146 | B152: 双组份刮涂掉头导向箭头600cm | C152: 按双组份标线（刮涂）要求执行。 | D152: 个 | E152: 1003.74
A153: 147 | B153: 双组份刮涂掉头导向箭头300cm | C153: 按双组份标线（刮涂）要求执行。 | D153: 个 | E153: 254.27
A154: 148 | B154: 双组份刮涂路面文字600cm | C154: 按双组份标线（刮涂）要求执行。 | D154: 个 | E154: 1170.39
A155: 149 | B155: 双组份刮涂路面文字300cm | C155: 按双组份标线（刮涂）要求执行。 | D155: 个 | E155: 586.28
A156: 150 | B156: 双组份刮涂路面文字200cm | C156: 按双组份标线（刮涂）要求执行。 | D156: 个 | E156: 391.57
A157: 151 | B157: 双组份刮涂路面文字100cm | C157: 按双组份标线（刮涂）要求执行。 | D157: 个 | E157: 196.87
A158: 152 | B158: 双组份刮涂人行横道预告标志（60*120cm） | C158: 按双组份标线（刮涂）要求执行。 | D158: 个 | E158: 142.78
A159: =+A158+1 -> 153 | B159: 双组份刮涂人行横道预告标志（150*300cm） | C159: 按双组份标线（刮涂）要求执行。 | D159: 个 | E159: 440.25
A160: 154 | B160: 双组份刮涂非机动车道标记（60*120cm) | C160: 按双组份标线（刮涂）要求执行。 | D160: 个 | E160: 142.35
A161: 155 | B161: 双组份刮涂减速让行标记(120*300cm) | C161: 按双组份标线（刮涂）要求执行。 | D161: 个 | E161: 352.63
A162: 156 | B162: 双组份刮涂停车让行标记(250*100cm) | C162: 按双组份标线（刮涂）要求执行。 | D162: 个 | E162: 492.17
A163: 157 | B163: 铲除标线 | C163: 磨机或火烧清除后涂抹沥青油。 | D163: ㎡ | E163: 51.34
A164: 158 | B164: 铲除直行导向箭头600cm | C164: 磨机或火烧清除后涂抹沥青油。 | D164: 个 | E164: 110.89
A165: 159 | B165: 铲除直行导向箭头300cm | C165: 磨机或火烧清除后涂抹沥青油。 | D165: 个 | E165: 35.42
A166: 160 | B166: 铲除左（右）弯导向箭头600cm | C166: 磨机或火烧清除后涂抹沥青油。 | D166: 个 | E166: 141.64
A167: 161 | B167: 铲除左（右）弯导向箭头300cm | C167: 磨机或火烧清除后涂抹沥青油。 | D167: 个 | E167: 35.42
A168: 162 | B168: 铲除转弯导向箭头600cm | C168: 磨机或火烧清除后涂抹沥青油。 | D168: 个 | E168: 141.64
A169: 163 | B169: 铲除转弯导向箭头300cm | C169: 磨机或火烧清除后涂抹沥青油。 | D169: 个 | E169: 35.42
A170: 164 | B170: 铲除复式导向箭头600cm | C170: 磨机或火烧清除后涂抹沥青油。 | D170: 个 | E170: 192
A171: 165 | B171: 铲除复式导向箭头300cm | C171: 磨机或火烧清除后涂抹沥青油。 | D171: 个 | E171: 48
A172: 166 | B172: 铲除掉头导向箭头600cm | C172: 磨机或火烧清除后涂抹沥青油。 | D172: 个 | E172: 206.89
A173: 167 | B173: 铲除掉头导向箭头300cm | C173: 磨机或火烧清除后涂抹沥青油。 | D173: 个 | E173: 51.7
A174: 168 | B174: 铲除文字600cm | C174: 磨机或火烧清除后涂抹沥青油。 | D174: 个 | E174: 308.03
A175: 169 | B175: 铲除文字300cm | C175: 磨机或火烧清除后涂抹沥青油。 | D175: 个 | E175: 154.01
A176: 170 | B176: 铲除文字200cm | C176: 磨机或火烧清除后涂抹沥青油。 | D176: 个 | E176: 102.68
A177: 171 | B177: 铲除文字100cm | C177: 磨机或火烧清除后涂抹沥青油。 | D177: 个 | E177: 51.34
A178: 172 | B178: 铲除人行横道预告标志(60*120cm) | C178: 磨机或火烧清除后涂抹沥青油。 | D178: 个 | E178: 36.96
A179: 173 | B179: 铲除人行横道预告标志(150*300cm) | C179: 磨机或火烧清除后涂抹沥青油。 | D179: 个 | E179: 231.02
A180: 174 | B180: 铲除非机动车道标记(60*120cm) | C180: 磨机或火烧清除后涂抹沥青油。 | D180: 个 | E180: 36.96
A181: 175 | B181: 铲除减速让行标记(120*300cm） | C181: 磨机或火烧清除后涂抹沥青油。 | D181: 个 | E181: 184.82
A182: 176 | B182: 铲除停车让行标记（250*100cm) | C182: 磨机或火烧清除后涂抹沥青油。 | D182: 个 | E182: 128.35
A183: 177 | B183: 高压水除标线 | C183: 高压水枪清除后涂抹沥青油。 | D183: ㎡ | E183: 91.56
A184: 四 | B184: 其他交通安全设施
A185: =+A183+1 -> 178 | B185: 矩形反光轮廓标（180*40mm） | C185: 1、矩形轮廓标； 2、铝合金底板； 3、单面高反光片； 4、含安装。 | D185: 个 | E185: 33.48
A186: =+A185+1 -> 179 | B186: 梯形反光轮廓标（110*70*50mm) | C186: 1、梯形轮廓标； 2、铝合金底板； 3、单面高反光片； 4、含安装。 | D186: 个 | E186: 28.81
A187: 180 | B187: 带状轮廓标 | C187: 1、荧光黄绿（橙）Ⅴ类反光膜； 2、1mm铝合金底板； 3、波浪形； 4、含安装。 | D187: ㎡ | E187: 565.12
A188: 181 | B188: 示警桩(Ф114*1200mm) | C188: 1、Ф114*4mm钢管； 2、高1200mm； 3、外贴Ⅲ类反光膜Ⅰ； 4、含安装。 | D188: 支 | E188: 330.17
A189: 182 | B189: 示警桩(Ф114*600mm) | C189: 1、Ф114*4mm钢管； 2、高600mm； 3、外贴Ⅲ类反光膜Ⅰ； 4、含安装。 | D189: 支 | E189: 240.29
A190: 183 | B190: ABS塑料立面标识型示警桩（300*220*600mm) | C190: 1、ABS塑料主体； 2、面贴荧光黄绿、荧光橙Ⅴ类反光膜； 3、热镀锌50*5mm抱箍； 4、M18*45mm螺栓； 5、含安装。 | D190: 个 | E190: 674.57
A191: 184 | B191: ABS塑料立面标识型示警桩（300*220*900mm) | C191: 1、ABS塑料主体； 2、面贴荧光黄绿、荧光橙Ⅴ类反光膜； 3、热镀锌50*5mm抱箍； 4、M18*45mm螺栓； 5、含安装。 | D191: 个 | E191: 947.07
A192: 185 | B192: 橡胶立面标识型示警桩（300*220*600mm) | C192: 1、橡胶主体； 2、面贴荧光黄绿、荧光橙Ⅴ类反光膜； 3、热镀锌50*5mm抱箍； 4、M8*80mm内膨胀螺丝； 5、含安装。 | D192: 个 | E192: 947.07
A193: 186 | B193: 橡胶立面标识型示警桩（300*220*900mm) | C193: 1、橡胶主体； 2、面贴荧光黄绿、荧光橙Ⅴ类反光膜； 3、热镀锌50*5mm抱箍； 4、M8*80mm内膨胀螺丝； 5、含安装。 | D193: 个 | E193: 1177.06
A194: 187 | B194: 不锈钢立面标识型示警桩（300*220*600mm) | C194: 1、主体201不锈钢； 2、面贴荧光黄绿、荧光橙Ⅴ类反光膜； 3、热镀锌50*5mm抱箍； 4、M18*45mm螺栓； 5、100*25*4mm铝槽； 6、含安装。 | D194: 个 | E194: 2102.47
A195: 188 | B195: 不锈钢立面标识型示警桩（300*220*900mm) | C195: 1、主体201不锈钢； 2、面贴荧光黄绿、荧光橙Ⅴ类反光膜； 3、热镀锌50*5mm抱箍； 4、M18*45mm螺栓； 5、100*25*4mm铝槽； 6、含安装。 | D195: 个 | E195: 2102.47
A196: 189 | B196: 太阳能示警柱(1150*200*200mm） | C196: 1、外壳钣金； 2、单硅晶太阳能电池；36颗以上高亮LED光源；满电连续工作≥120小时； 3、包安装。 | D196: 套 | E196: 465.29
A197: 190 | B197: 安装示警桩 | C197: 1、安装示警桩的人工及器械费用； 2、包含连接螺栓。 | D197: 支 | E197: 71.6
A198: 191 | B198: 拆除示警桩 | C198: 拆除示警桩的人工及器械费用。 | D198: 支 | E198: 21.48
A199: 192 | B199: 弹力示警桩（Ф≥75mm，h≥750mm） | C199: 1、热塑性聚氨酯(TPU），红色或绿色； 2、三段微棱镜结构Ⅳ类或以上等级白色反光膜，每段宽度≥50mm； 3、底盘部双向设有微棱镜道钉型反光片; 4、自然使用寿命≥1年； 5、含安装。 | D199: 支 | E199: 179.16
A200: 193 | B200: 安装弹力示警桩 | C200: 1、安装弹力示警桩的人工及器械费用； 2、包含连接螺栓。 | D200: 支 | E200: 48.36
... 328 more rows
